bitfinex-derivatives/quotes_ETHF0:USTF0_20251001
["timestamp","ask_amount","ask_price","bid_price","bid_amount"]
[1759305407689,1.2034,4149.1,4149.0,0.8911]
[1759305408095,1.2034,4149.1,4149.0,0.7649]
[1759305408490,0.7697,4148.8,4148.7,0.7649]
[1759305409084,0.86760462,4149.2,4148.7,1.19865]
[1759305409284,1.20335,4149.6,4149.5,0.2175]
[1759305409487,2.31495462,4149.6,4149.5,0.2175]
[1759305410095,2.07095462,4149.6,4149.5,0.2175]
[1759305410298,1.20337,4149.4,4149.3,0.3255]
[1759305411095,1.20337,4149.4,4149.3,0.7649]
[1759305411292,1.20337,4149.4,4149.3,0.543]
[1759305411491,1.2034,4149.1,4149.0,0.6692]
[1759305411797,2.31500462,4149.1,4149.0,0.6692]
[1759305412096,2.31500462,4149.1,4149.0,0.8911]
[1759305413298,2.31500462,4149.1,4149.0,0.7649]
[1759305415200,0.88252,4148.9,4148.8,0.87227362]
[1759305415505,1.22012,4148.9,4148.8,1.08467362]
[1759305415801,1.22012,4148.9,4148.8,0.7628]
[1759305417105,1.23726905,4148.9,4148.8,0.7628]
[1759305417701,1.22015,4148.7,4148.6,2.05716257]
[1759305417902,0.7864,4148.7,4148.6,2.05716257]
[1759305418104,1.23729905,4148.7,4148.6,2.05716257]
[1759305418704,1.23729905,4148.7,4148.6,1.62341257]
[1759305418911,1.23729905,4148.7,4148.6,1.18032113]
[1759305419107,1.23729905,4148.7,4148.6,1.40802113]
[1759305421504,0.80354905,4148.7,4148.6,1.40802113]
[1759305421697,0.01714905,4148.7,4148.6,1.19656]
[1759305422102,0.45089905,4148.7,4148.6,1.19656]
[1759305422307,1.01189905,4148.7,4148.6,1.19656]
[1759305422808,0.67429905,4148.7,4148.6,1.19656]
[1759305423011,0.67429905,4148.7,4148.6,0.7628]
[1759305423705,1.01189905,4148.7,4148.6,1.19656]
[1759305423905,0.67429905,4148.7,4148.6,2.05717257]
[1759305424300,0.67429905,4148.7,4148.6,1.62341257]
[1759305424505,0.68917657,4148.7,4148.6,0.7628]
[1759305425013,0.68917657,4148.7,4148.6,1.19656]
[1759305425210,0.68917657,4148.7,4148.6,2.05717257]
[1759305426512,0.43374,4148.8,4148.7,0.83021864]
[1759305426711,0.43374,4148.8,4148.7,1.15291864]
[1759305427415,2.10530462,4149.1,4149.0,0.9001]
[1759305428115,1.86230462,4149.1,4149.0,0.9001]
[1759305432324,1.86230462,4149.1,4149.0,1.54612953]
[1759305433023,2.08770462,4149.1,4149.0,1.54612953]
[1759305433224,2.08770462,4149.1,4149.0,1.40882953]
[1759305434608,2.08770462,4149.1,4149.0,1.18112953]
[1759305435014,2.08770462,4149.1,4149.0,0.64602953]
[1759305436621,2.08770462,4149.1,4149.0,0.96872953]
[1759305437026,2.33070462,4149.1,4149.0,1.18112953]
[1759305437227,2.33070462,4149.1,4149.0,0.5351]
[1759305437921,2.33070462,4149.1,4149.0,0.7628]
[1759305439021,1.4631,4149.1,4149.0,0.9001]
[1759305441224,0.6571,4149.1,4149.0,0.9001]
[1759305441414,1.2192,4149.1,4149.0,0.9001]
[1759305443726,1.2192,4149.1,4149.0,1.33381]
[1759305443925,1.2192,4149.1,4149.0,0.7628]
[1759305444315,1.2192,4149.1,4149.0,1.19651]
[1759305444520,1.2192,4149.1,4149.0,0.7628]
[1759305445427,1.2192,4149.1,4149.0,0.5351]
[1759305447929,1.2192,4149.1,4149.0,0.96881]
[1759305448224,1.2192,4149.1,4149.0,0.5351]
[1759305449830,1.2192,4149.1,4149.0,1.19751]
[1759305450022,1.2192,4149.1,4149.0,1.32441]
[1759305450218,1.2192,4149.1,4149.0,1.19751]
[1759305451327,1.2192,4149.1,4149.0,0.7638]
[1759305452132,1.23632569,4149.1,4149.0,1.19751]
[1759305452831,1.23632569,4149.1,4149.0,0.7638]
[1759305453731,1.23632569,4149.1,4149.0,1.19751]
[1759305454134,1.23632569,4149.1,4149.0,0.7638]
[1759305454325,1.24634504,4149.1,4149.0,0.7638]
[1759305458731,1.24634504,4149.1,4149.0,0.5351]
[1759305458935,1.19872,4148.9,4148.8,1.64081257]
[1759305459137,1.19872,4148.9,4148.8,0.7802]
[1759305459436,1.22586504,4148.9,4148.8,0.7802]
[1759305464441,1.24208874,4148.9,4148.8,0.7802]
[1759305464646,1.24208874,4148.9,4148.8,1.21394]
[1759305466745,1.24208874,4148.9,4148.8,0.7802]
[1759305467644,1.24208874,4148.9,4148.8,1.21394]
[1759305468946,1.24208874,4148.9,4148.8,0.7802]
[1759305469747,1.24208874,4148.9,4148.8,1.21394]
[1759305471745,1.25859826,4148.9,4148.8,1.21394]
[1759305473546,1.25859826,4148.9,4148.8,0.7802]
[1759305473852,1.26378147,4148.9,4148.8,0.7802]
[1759305474053,1.26378147,4148.9,4148.8,1.21394]
[1759305474254,1.19872,4148.9,4148.8,1.21394]
[1759305474443,1.26896468,4148.9,4148.8,1.21394]
[1759305474749,1.18584,4148.8,4148.7,3.2078]
[1759305475047,1.18585,4148.7,4148.6,0.862153]
[1759305475449,1.25609468,4148.7,4148.6,1.206053]
[1759305475648,1.25609468,4148.7,4148.6,1.425353]
[1759305476650,2.26029727,4148.7,4148.6,1.425353]
[1759305477043,2.26372987,4148.7,4148.6,1.425353]
[1759305477445,1.82997987,4148.7,4148.6,1.859113]
[1759305477643,2.26372987,4148.7,4148.6,1.859113]
[1759305477839,2.26372987,4148.7,4148.6,2.083913]
[1759305479151,2.26372987,4148.7,4148.6,1.650153]
[1759305482055,2.26372987,4148.7,4148.6,0.788]
[1759305482758,1.25952728,4148.7,4148.6,0.788]
[1759305484052,1.25952728,4148.7,4148.6,1.650153]
[1759305484562,0.93921728,4148.7,4148.6,2.083913]
[1759305484755,0.29417728,4148.7,4148.6,2.083913]
[1759305485258,0.72791728,4148.7,4148.6,2.083913]
[1759305485561,0.72791728,4148.7,4148.6,2.326913]
[1759305485761,0.2205,4149.2,4149.1,1.2217]
[1759305486062,0.75398,4149.4,4149.3,0.43368]
[1759305486256,0.97448,4149.4,4149.3,1.86812784]
[1759305486651,1.18578,4149.4,4149.3,1.43444784]
[1759305486853,2.18998259,4149.4,4149.3,1.43444784]
[1759305488056,2.43298259,4149.4,4149.3,0.64644784]
[1759305488254,1.18578,4149.3,4149.2,0.64644784]
[1759305488455,1.18579,4149.2,4149.1,0.64644784]
[1759305488761,1.24720259,4149.4,4149.0,0.64644784]
[1759305488762,1.1858,4149.1,4149.0,0.64644784]
[1759305489365,1.4288,4149.1,4149.0,0.64644784]
[1759305490650,0.75403,4148.9,4148.8,0.64644784]
[1759305490854,0.75403,4148.9,4148.7,0.64644784]
[1759305490855,1.18584,4148.8,4148.7,0.64644784]
[1759305491053,1.42884,4148.8,4148.7,0.64644784]
[1759305491260,1.42884,4148.8,4148.7,0.99034784]
[1759305491864,1.42884,4148.8,4148.7,1.20964784]
[1759305496561,1.42884,4148.8,4148.7,1.43444784]
[1759305499261,1.42884,4148.8,4148.7,1.4345018]
[1759305502354,1.42884,4148.8,4148.7,1.1822018]
[1759305503870,1.42884,4148.8,4148.7,0.8644018]
[1759305504072,1.42884,4148.8,4148.7,0.6465018]
[1759305504269,1.42884,4148.8,4148.7,0.9782018]
[1759305504474,1.42884,4148.8,4148.7,1.1921018]
[1759305505874,4.29206,4149.2,4148.8,0.7714]
[1759305505875,0.2285,4148.9,4148.8,0.7714]
[1759305506170,0.99403,4148.9,4148.8,1.4179018]
[1759305506369,1.21663,4148.9,4148.8,1.4179018]
[1759305507670,1.21663,4148.9,4148.8,1.1921018]
[1759305507965,2.22083259,4148.9,4148.8,1.1921018]
[1759305508377,2.22083259,4148.9,4148.8,0.5456]
[1759305509274,1.21663,4148.9,4148.8,0.7714]
[1759305509472,0.88483,4148.9,4148.8,1.4179018]
[1759305509779,0.88483,4148.9,4148.8,0.7714]
[1759305510076,1.21663,4148.9,4148.8,1.4179018]
[1759305511566,1.21663,4148.9,4148.8,1.8516418]
[1759305512478,0.2285,4148.9,4148.8,1.8516418]
[1759305513679,0.66223,4148.9,4148.8,1.8516418]
[1759305515687,0.2285,4148.9,4148.8,1.8516418]
[1759305515882,0.2285,4148.9,4148.8,1.20514]
[1759305516087,0.66223,4148.9,4148.8,1.20514]
[1759305517391,0.99403,4148.9,4148.8,1.20514]
[1759305517887,3.2078,4149.2,4148.8,1.20514]
[1759305517888,0.243,4149.2,4149.1,0.4397]
[1759305518189,0.243,4149.2,4149.1,1.85125678]
[1759305518891,0.6767,4149.2,4149.1,1.85117208]
[1759305519091,0.9052,4149.2,4149.1,1.85117208]
[1759305519390,0.9052,4149.2,4149.1,1.20511]
[1759305519590,2.32745437,4149.2,4149.1,1.20511]
[1759305520191,2.32745437,4149.2,4149.1,1.85107083]
[1759305520787,2.32745437,4149.2,4149.1,1.41736083]
[1759305520988,2.32745437,4149.2,4149.1,1.19156083]
[1759305521194,2.32745437,4149.2,4149.0,0.64596083]
[1759305521195,0.88481,4149.1,4149.0,0.64596083]
[1759305521395,1.21661,4149.1,4149.0,0.97766083]
[1759305522191,1.21661,4149.1,4149.0,1.19156083]
[1759305523198,1.21661,4149.1,4149.0,0.64596083]
[1759305523399,0.43374,4148.8,4148.7,0.64596083]
[1759305523701,2.32749437,4148.8,4148.7,1.41736083]
[1759305524095,1.99569437,4148.8,4148.7,1.85111083]
[1759305524296,2.32749437,4148.8,4148.7,1.85111083]
[1759305524695,2.32749437,4148.8,4148.7,1.41736083]
[1759305527599,2.32749437,4148.8,4148.7,1.85111083]
[1759305527998,1.0259,4148.8,4148.7,1.85111083]
[1759305528202,0.99401,4149.1,4149.0,0.9078]
[1759305528392,1.21661,4149.1,4149.0,0.9078]
[1759305529501,1.21661,4149.1,4149.0,0.7714]
[1759305531098,1.21661,4149.1,4148.9,0.64612663]
[1759305531299,2.08447437,4149.0,4148.9,1.19172663]
[1759305531607,2.08447437,4149.0,4148.9,1.41752663]
[1759305532904,1.86187437,4149.0,4148.9,1.41752663]
[1759305533104,1.85027437,4149.0,4148.9,1.41752663]
[1759305533309,2.07717437,4149.0,4148.9,1.41752663]
[1759305540822,0.43371,4149.1,4148.9,1.41752663]
[1759305541025,0.43371,4149.1,4149.0,1.53232663]
[1759305543922,0.98241,4149.1,4149.0,1.53232663]
[1759305544222,0.65471,4149.1,4149.0,1.53232663]
[1759305544616,1.20931,4149.1,4149.0,1.39572663]
[1759305544817,1.20931,4149.1,4149.0,0.5358]
[1759305546625,1.20931,4149.1,4149.0,0.3169]
[1759305546822,1.20933,4148.9,4148.8,1.18192663]
[1759305547023,2.32118437,4148.9,4148.8,1.18192663]
[1759305548019,2.32118437,4148.9,4148.8,0.64612663]
[1759305548722,1.20935,4148.7,4148.6,0.64612663]
[1759305548916,1.20935,4148.7,4148.6,1.39572663]
[1759305549620,1.20935,4148.7,4148.6,0.7496]
[1759305549825,1.20935,4148.7,4148.6,1.39634174]
[1759305552231,1.20935,4148.7,4148.6,0.5358]
[1759305553024,1.20936,4148.6,4148.5,0.0027538]
[1759305553325,2.32121437,4148.6,4148.5,0.0027538]
[1759305554425,2.32121437,4148.6,4148.5,0.5385538]
[1759305557323,2.32121437,4148.6,4148.5,0.0027538]
[1759305557931,2.32121437,4148.6,4148.5,0.3196538]
[1759305558123,2.32121437,4148.6,4148.5,0.5385538]
[1759305558728,1.45336,4148.6,4148.5,0.7523538]
[1759305558927,2.32121437,4148.6,4148.5,0.7523538]
[1759305564036,0.89876,4148.6,4148.5,0.8865538]
[1759305564236,2.31741437,4148.6,4148.5,0.5296538]
[1759305565428,2.31741437,4148.6,4148.5,1.3093238]
[1759305565828,2.31741437,4148.6,4148.5,0.8755538]
[1759305566430,2.31741437,4148.6,4148.5,1.3093238]
[1759305566635,1.54561437,4148.6,4148.5,1.3093238]
[1759305568141,1.76071437,4148.6,4148.5,0.8755538]
[1759305568336,2.09581437,4148.6,4148.5,0.8755538]
[1759305568643,2.31741437,4148.6,4148.5,0.8755538]
[1759305569050,2.31741437,4148.6,4148.5,1.3093238]
[1759305569347,2.31741437,4148.6,4148.5,0.8755538]
[1759305569948,2.31741437,4148.6,4148.5,1.3093238]
[1759305570144,2.31741437,4148.6,4148.5,0.8755538]
[1759305570942,2.31741437,4148.6,4148.5,0.7413538]
[1759305572248,1.44956,4148.6,4148.5,0.7413538]
[1759305572747,1.44956,4148.6,4148.5,0.5296538]
[1759305573246,1.44956,4148.6,4148.5,0.0027538]
[1759305574545,1.44956,4148.6,4148.5,0.7689538]
[1759305576841,1.44856,4148.6,4148.5,0.7689538]
[1759305578156,1.44856,4148.6,4148.5,0.5572538]
[1759305578357,1.44856,4148.6,4148.5,0.64940012]
[1759305580552,1.44856,4148.6,4148.5,1.20390012]
[1759305580756,1.44856,4148.6,4148.5,1.41560012]
[1759305582860,1.44856,4148.6,4148.5,1.20390012]
[1759305583050,1.44856,4148.6,4148.5,0.64940012]
[1759305583254,1.44856,4148.6,4148.5,0.99390012]
[1759305583560,1.44856,4148.6,4148.5,1.20390012]
[1759305584457,1.44856,4148.6,4148.5,1.41560012]
[1759305584761,1.44856,4148.6,4148.5,1.54980012]
[1759305584958,1.44856,4148.6,4148.5,1.41560012]
[1759305588355,1.44856,4148.6,4148.5,0.64940012]
[1759305589362,1.44856,4148.6,4148.5,0.99390012]
[1759305589557,1.44856,4148.6,4148.5,1.20390012]
[1759305589757,1.44856,4148.6,4148.5,0.64940012]
[1759305590763,1.44856,4148.6,4148.5,0.99390012]
[1759305590964,1.44856,4148.6,4148.5,1.20390012]
[1759305591560,1.44856,4148.6,4148.5,1.41560012]
[1759305593266,1.44856,4148.6,4148.5,0.7689538]
[1759305595265,1.44856,4148.6,4148.5,0.8970538]
[1759305595764,1.44856,4148.6,4148.5,0.7689538]
[1759305595964,1.44856,4148.6,4148.5,0.64969544]
[1759305596765,1.44856,4148.6,4148.5,0.98509544]
[1759305596967,1.44856,4148.6,4148.5,0.64969544]
[1759305597970,1.44856,4148.6,4148.5,0.3381538]
[1759305598263,1.44856,4148.6,4148.5,0.0027538]
[1759305598762,1.44856,4148.6,4148.5,0.64971314]
[1759305599164,1.44856,4148.6,4148.5,0.0027538]
[1759305600565,1.18515,4147.8,4147.7,0.546]
[1759305600869,0.7513,4147.4,4147.3,0.4236]
[1759305601072,0.2124,4147.4,4147.3,1.71771]
[1759305601271,0.2124,4147.4,4147.3,2.05311]
[1759305601569,1.18517,4147.6,4147.5,0.5517]
[1759305601769,1.18517,4147.6,4147.5,1.28576737]
[1759305602069,1.18517,4147.6,4147.5,1.4057057]
[1759305602566,0.43388,4147.5,4147.4,0.63946742]
[1759305602765,1.1852,4147.3,4147.2,0.00210945]
[1759305602973,4.393,4147.3,4147.2,0.00210945]
[1759305603168,4.393,4147.3,4147.2,0.76110945]
[1759305603368,4.636,4147.3,4147.2,0.76110945]
[1759305603669,1.4282,4147.3,4147.2,0.76110945]
[1759305603866,0.9943,4147.3,4147.2,0.76110945]
[1759305604777,0.9943,4147.3,4147.2,0.00210945]
[1759305606369,0.7513,4147.3,4147.2,0.54810945]
[1759305606565,0.9943,4147.3,4147.2,0.54810945]
[1759305606763,0.7513,4147.3,4147.2,0.76110945]
[1759305606969,0.9943,4147.3,4147.2,0.76110945]
[1759305607971,0.9943,4147.3,4147.2,0.54810945]
[1759305608171,0.9943,4147.3,4147.2,0.76110945]
[1759305609172,0.9943,4147.3,4147.2,0.54810945]
[1759305609874,0.9943,4147.3,4147.2,0.76110945]
[1759305610676,3.2078,4147.5,4147.4,0.4236]
[1759305610870,3.4508,4147.5,4147.4,0.759]
[1759305611175,3.4508,4147.5,4147.4,1.19289]
[1759305611766,3.2078,4147.5,4147.4,1.19289]
[1759305612074,3.2078,4148.0,4147.9,0.759]
[1759305612375,3.2078,4148.0,4147.9,1.19283]
[1759305613375,0.243,4148.2,4148.1,0.43381]
[1759305613671,3.6632,4148.5,4148.4,1.19278]
[1759305613875,4.2021,4148.5,4148.4,1.19278]
[1759305614074,4.63587,4148.5,4148.4,0.759]
[1759305614574,4.2021,4148.5,4148.4,1.19278]
[1759305614775,4.2021,4148.5,4148.4,0.759]
[1759305616773,3.4508,4148.5,4148.4,0.759]
[1759305617372,4.42447,4148.5,4148.4,0.759]
[1759305617573,4.39287,4148.5,4148.4,0.759]
[1759305617773,4.63587,4148.5,4148.4,0.759]
[1759305617974,0.5399,4148.8,4148.7,0.4236]
[1759305618176,0.4554,4148.8,4148.7,0.759]
[1759305618371,0.2124,4148.8,4148.7,0.759]
[1759305618579,3.88452,4149.0,4148.9,0.759]
[1759305618881,0.88912,4149.0,4148.9,0.759]
[1759305619079,1.42802,4149.0,4148.9,0.546]
[1759305619282,0.88208,4148.4,4148.3,3.2078]
[1759305619593,0.7629,4148.1,4148.0,0.535]
[1759305619784,0.7629,4147.8,4147.7,4.17666]
[1759305619976,1.0059,4147.8,4147.7,4.17666]
[1759305620287,1.43975,4147.8,4147.7,4.17666]
[1759305620686,1.43975,4147.8,4147.7,4.40326]
[1759305621579,1.1967,4148.2,4148.1,0.7616]
[1759305621780,0.4715,4148.2,4148.1,1.19541]
[1759305621979,0.9053,4148.2,4148.1,1.19541]
[1759305622984,0.4715,4148.2,4148.1,1.19541]
[1759305623773,0.2285,4148.2,4148.1,1.19541]
[1759305624283,0.67677,4148.5,4148.4,0.7734]
[1759305624677,0.89227,4148.5,4148.4,0.7734]
[1759305625074,0.96237,4148.5,4148.4,0.7734]
[1759305625286,1.17627,4148.5,4148.4,0.7734]
[1759305626288,1.30327,4148.5,4148.4,0.2226]
[1759305626487,1.17627,4148.5,4148.4,0.7734]
[1759305627187,1.54627,4148.5,4148.4,0.2226]
[1759305627383,1.17635,4147.8,4147.7,3.6592]
[1759305627681,0.96247,4147.6,4147.5,1.01218]
[1759305627879,0.67684,4147.9,4147.8,0.2226]
[1759305628083,0.67684,4147.9,4147.8,0.7734]
[1759305628289,0.4595,4148.1,4148.0,0.5783]
[1759305628471,0.4595,4148.1,4148.0,0.9003]
[1759305628671,0.7726,4148.1,4148.0,0.9003]
[1759305628885,1.20641,4148.1,4148.0,0.9003]
[1759305629080,1.42031,4148.1,4148.0,0.9003]
[1759305629785,1.42031,4148.1,4148.0,0.7734]
[1759305631482,1.42031,4148.1,4147.6,0.2226]
[1759305631483,1.17636,4147.7,4147.6,0.2226]
[1759305631783,1.17636,4147.7,4147.6,3.9812]
[1759305632085,0.2155,4147.7,4147.6,4.41507]
[1759305632281,0.64936,4147.7,4147.6,4.41507]
[1759305633185,0.64936,4147.7,4147.6,3.9812]
[1759305633385,1.17636,4147.7,4147.6,3.9812]
[1759305634289,1.17636,4147.7,4147.6,4.41507]
[1759305634987,0.4294,4147.7,4147.6,4.41507]
[1759305635182,0.2155,4147.7,4147.6,4.41507]
[1759305635577,0.64936,4147.7,4147.6,4.41507]
[1759305635988,1.17636,4147.7,4147.6,0.7734]
[1759305636593,1.1764,4147.3,4147.2,0.00210945]
[1759305636795,1.4204,4147.3,4147.2,0.00210945]
[1759305637991,1.4204,4147.3,4147.2,0.54670945]
[1759305639590,1.4204,4147.3,4147.2,0.00210945]
[1759305639894,1.4204,4147.3,4147.2,0.54670945]
[1759305640090,1.4375989,4147.3,4147.2,0.54670945]
[1759305640687,0.7596989,4147.3,4147.2,0.77550945]
[1759305640887,0.4510989,4147.3,4147.2,0.77550945]
[1759305641093,0.0171989,4147.3,4147.2,1.20941945]
[1759305641292,0.4510989,4147.3,4147.2,1.20941945]
[1759305641695,0.6665989,4147.3,4147.2,0.77550945]
[1759305642790,0.0171989,4147.3,4147.2,1.20941945]
[1759305643482,0.0171989,4147.3,4147.2,2.07158682]
[1759305646495,0.2326989,4147.3,4147.2,2.31458682]
[1759305647500,0.6665989,4147.3,4147.2,2.31458682]
[1759305647694,1.1935989,4147.3,4147.2,0.77550945]
[1759305649594,1.1935989,4147.3,4147.2,0.00210945]
[1759305650203,1.1935989,4147.3,4147.2,0.54670945]
[1759305650594,1.1935989,4147.3,4147.2,0.77550945]
[1759305650794,0.8804989,4147.3,4147.2,1.20941945]
[1759305650996,0.0171989,4147.3,4147.2,1.20941945]
[1759305651293,1.1935989,4147.3,4147.2,1.20941945]
[1759305652003,0.8804989,4147.3,4147.2,1.20941945]
[1759305653105,0.8804989,4147.3,4147.2,0.77550945]
[1759305653296,1.2138989,4147.3,4147.2,0.77550945]
[1759305653898,1.2138989,4147.3,4147.2,0.00210945]
[1759305654497,1.2138989,4147.3,4147.2,0.53750945]
[1759305654904,1.2138989,4147.3,4147.2,0.22260945]
[1759305655204,1.2138989,4147.3,4147.2,0.53750945]
[1759305655803,0.8804989,4147.3,4147.2,0.76090945]
[1759305656003,0.8804989,4147.3,4147.2,1.19481945]
[1759305656203,1.2138989,4147.3,4147.2,1.19481945]
[1759305656910,1.2138989,4147.3,4147.2,0.76090945]
[1759305657703,1.2138989,4147.3,4147.2,1.19481945]
[1759305659112,1.2138989,4147.3,4147.2,0.76090945]
[1759305660607,1.2138989,4147.3,4147.2,1.19481945]
[1759305661310,0.88042,4147.1,4147.0,0.86216737]
[1759305661513,1.21382,4147.1,4147.0,1.36339737]
[1759305662103,1.2310189,4147.1,4147.0,1.36339737]
[1759305662307,1.2310189,4147.1,4147.0,1.3653365]
[1759305662515,1.2310189,4147.1,4147.0,0.9314065]
[1759305662703,1.2310189,4147.1,4147.0,0.00193913]
[1759305662903,1.4740189,4147.1,4147.0,0.00193913]
[1759305664411,0.88046,4146.7,4146.6,0.64838764]
[1759305664612,0.88046,4146.7,4146.3,0.64838764]
[1759305664613,0.76739,4146.4,4146.3,0.64838764]
[1759305664818,1.21389,4146.4,4146.3,0.64838764]
[1759305665010,1.21389,4146.4,4146.3,1.08238764]
[1759305665316,1.2310889,4146.4,4146.3,0.64838764]
[1759305665618,1.23311082,4146.4,4146.3,0.65138976]
[1759305666311,1.23311082,4146.4,4146.3,0.00300212]
[1759305666617,1.47711082,4146.4,4146.3,0.00300212]
[1759305674017,1.47711082,4146.4,4145.1,4.31296737]
[1759305674018,0.43409,4145.4,4145.3,0.71878764]
[1759305674223,1.2311889,4145.4,4145.3,0.71878764]
[1759305675030,1.2311889,4145.4,4145.3,0.72127006]
[1759305675326,1.2311889,4145.4,4145.3,0.07288242]
[1759305675525,1.4741889,4145.4,4145.3,0.00248242]
[1759305675728,4.6819889,4145.4,4145.3,0.00248242]
[1759305678531,4.6819889,4145.4,4145.3,0.07288242]
[1759305679325,4.4389889,4145.4,4145.3,0.57738242]
[1759305679530,0.7846889,4145.4,4145.3,0.57738242]
[1759305679829,0.7846889,4145.4,4145.3,0.62158242]
[1759305680131,0.3505989,4145.4,4145.3,5.62158242]
[1759305680726,0.0171989,4145.4,4145.3,5.62158242]
[1759305680923,0.0171989,4145.4,4145.3,6.26997006]
[1759305681731,0.3612989,4145.4,4145.3,6.26997006]
[1759305681932,0.0171989,4145.4,4145.3,6.26997006]
[1759305682133,0.4717,4146.0,4145.9,0.61964]
[1759305682333,3.77052192,4146.4,4146.3,0.5754]
[1759305682527,3.55392192,4146.4,4146.3,0.6196]
[1759305682834,0.00202192,4146.4,4146.3,0.6196]
[1759305683134,0.34612192,4146.4,4146.3,0.6196]
[1759305683334,0.34612192,4146.4,4146.3,0.8636]
[1759305683732,0.34612192,4146.4,4146.3,1.46504482]
[1759305683930,0.56122192,4146.4,4146.3,1.46504482]
[1759305685227,0.77272192,4146.4,4146.3,0.5047]
[1759305685434,0.77272192,4146.4,4146.3,1.15031099]
[1759305686135,0.77272192,4146.4,4146.3,1.22121099]
[1759305687832,0.77272192,4146.4,4146.3,1.15031099]
[1759305688138,1.20671192,4146.4,4146.3,1.07961099]
[1759305688836,0.77272192,4146.4,4146.3,1.07961099]
[1759305689039,0.77272192,4146.4,4146.3,1.15051099]
[1759305689428,0.77272192,4146.4,4146.3,1.22141099]
[1759305689627,0.77272192,4146.4,4146.3,1.22173122]
[1759305690338,0.77272192,4146.4,4146.3,0.5758]
[1759305690739,0.77272192,4146.4,4146.3,1.22175163]
[1759305690935,0.55762192,4146.4,4146.3,1.22175163]
[1759305691139,0.34612192,4146.4,4146.3,5.6201]
[1759305692041,0.00202192,4146.4,4146.3,5.6201]
[1759305692642,0.00202192,4146.4,4146.3,6.48098268]
[1759305693041,0.32222192,4146.4,4146.3,6.48098268]
[1759305693443,0.3202,4147.0,4146.9,0.62004]
[1759305693638,1.55929055,4147.2,4147.1,0.57572]
[1759305694034,1.55929055,4147.2,4147.1,0.62002]
[1759305694540,1.56135452,4147.2,4147.1,1.2658308]
[1759305695343,1.77645452,4147.2,4147.1,1.2215308]
[1759305696033,1.98795452,4147.2,4147.1,1.2215308]
[1759305696241,1.98795452,4147.2,4147.1,0.43392]
[1759305696442,1.98795452,4147.2,4146.8,0.6458108]
[1759305696443,0.8818,4147.0,4146.8,0.6458108]
[1759305696646,0.7468,4146.9,4146.8,1.0797608]
[1759305698648,0.7468,4146.9,4146.8,0.43395]
[1759305699140,0.3202,4146.9,4146.8,0.57575]
[1759305699347,0.5618,4148.0,4147.9,0.86423]
[1759305699650,0.5618,4148.0,4147.9,1.17583]
[1759305699844,0.2151,4148.0,4147.9,1.17583]
[1759305700041,0.5616,4148.0,4147.9,1.17583]
[1759305700243,0.56426572,4148.0,4147.9,0.86423]
[1759305701347,0.88446572,4148.0,4147.9,0.2121]
[1759305701542,0.75404,4147.9,4147.7,3.64165]
[1759305701754,0.7468,4147.8,4147.7,3.64165]
[1759305702455,0.7468,4147.8,4147.7,0.43385]
[1759305702652,0.7468,4147.8,4147.7,0.64595]
[1759305702853,3.2078,4150.1,4149.6,0.43365]
[1759305703048,0.4266,4149.8,4149.7,0.5237]
[1759305703250,0.43367,4149.5,4149.1,3.2078]
[1759305703450,0.4266,4149.2,4149.1,3.2078]
[1759305703848,0.42846876,4149.2,4149.1,0.31403752]
[1759305704255,0.42846876,4149.2,4149.1,0.00243752]
[1759305704454,5.42846876,4149.2,4149.1,0.00243752]
[1759305704854,5.74866876,4149.2,4149.1,0.00243752]
[1759305706254,5.99466876,4149.2,4149.1,0.00243752]
[1759305710947,9.20246876,4149.2,4149.1,0.00243752]
[1759305712958,4.20246876,4149.2,4149.1,0.00243752]
[1759305713159,4.20246876,4149.2,4149.1,0.33293752]
[1759305713559,4.63616876,4149.2,4149.1,0.33293752]
[1759305713759,4.63616876,4149.2,4149.1,0.00243752]
[1759305714061,4.63516876,4149.2,4149.1,0.54503752]
[1759305715064,4.63516876,4149.2,4149.1,0.00243752]
[1759305715963,4.63516876,4149.2,4149.1,0.33293752]
[1759305717060,4.63516876,4149.2,4149.1,0.00243752]
[1759305717966,4.63516876,4149.2,4149.1,0.33293752]
[1759305718458,4.63516876,4149.2,4149.1,0.00243752]
[1759305719958,4.647387,4149.2,4149.1,0.00243752]
[1759305726164,9.647387,4149.2,4149.1,0.00243752]
[1759305727765,4.647387,4149.2,4149.1,0.00243752]
[1759305727963,4.647387,4149.2,4149.1,0.33293752]
[1759305728365,4.647387,4149.2,4149.1,0.00243752]
[1759305732071,4.647387,4149.2,4149.1,0.54503752]
[1759305732571,4.647387,4149.2,4149.1,0.33293752]
[1759305733366,4.647387,4149.2,4149.1,0.76143752]
[1759305733571,4.327187,4149.2,4149.1,0.76143752]
[1759305734073,4.657587,4149.2,4149.1,0.76143752]
[1759305734867,4.657587,4149.2,4149.1,0.00243752]
[1759305735370,4.657587,4149.2,4149.1,0.33293752]
[1759305735567,4.657587,4149.2,4149.1,0.00243752]
[1759305736468,4.657587,4149.2,4149.1,7.52e-06]
[1759305736667,0.643,4148.2,4148.1,0.85834543]
[1759305736870,1.19152,4148.0,4147.9,1.18884543]
[1759305737068,1.44873824,4148.0,4147.9,0.3305]
[1759305737369,1.44873824,4148.0,4147.9,0.5426]
[1759305737769,1.44873824,4148.0,4147.9,0.54509984]
[1759305738269,0.76429,4147.4,4147.3,3.5383]
[1759305738466,0.76429,4147.4,4147.3,0.5426]
[1759305738467,1.43659,4147.4,4147.3,0.5426]
[1759305738666,0.88809,4147.4,4147.3,0.759]
[1759305739173,0.90030824,4147.4,4147.3,0.759]
[1759305739370,0.90030824,4147.4,4147.3,0.76122019]
[1759305740662,1.11840824,4147.4,4147.3,0.76122019]
[1759305740869,1.46010824,4147.4,4147.3,0.76122019]
[1759305742973,1.46010824,4147.4,4147.3,0.33272019]
[1759305743373,1.46010824,4147.4,4147.3,0.00222019]
[1759305743575,1.46010824,4147.4,4147.3,0.33052019]
[1759305745781,1.46010824,4147.4,4147.3,0.00222019]
[1759305746277,1.46010824,4147.4,4147.3,0.33052019]
[1759305746477,1.46010824,4147.4,4147.3,0.00222019]
[1759305747185,1.46010824,4147.4,4147.3,0.33052019]
[1759305747382,1.46010824,4147.4,4147.3,0.54082019]
[1759305752282,1.46010824,4147.4,4147.3,0.33052019]
[1759305752783,0.69110824,4147.4,4147.3,0.76712019]